[Event "Polish Youth G18 Championship 2023"]
[Site "Jastrzebia Gora"]
[Date "2023.03.13"]
[Round "2.20"]
[White "Nagly, Malgorzata"]
[Black "Samol, Julia"]
[Result "0-1"]
[ECO "B46"]
[WhiteElo "1041"]
[BlackElo "1374"]
[Annotator "NA RC COMBH"]
[PlyCount "48"]
[EventDate "2023.03.11"]
[EventType "swiss"]
[EventCountry "POL"]
[SourceTitle "playchess.com"]
[Source "ChessBase"]
[SourceQuality "1"]
[TimeControl "40/5400+30:1800+30"]

1. e4 {[%emt 0:00:02]} c5 {[%emt 0:00:04]} 2. Nf3 {[%emt 0:00:12]} e6 {[%emt 0:00:03]} 3. d4 {[%emt 0:00:22]} cxd4 {[%emt 0:00:04]} 4. Nxd4 {[%emt 0:00:14]} Nc6 {[%emt 0:00:03]} 5. Nc3 {[%emt 0:00:44]} a6 {[%emt 0:00:37]} 6. Be3 {[%emt 0:02:07]} Qc7 {[%emt 0:00:05]} 7. g4 {[%emt 0:01:32]} Bb4 {[%emt 0:09:24]} 8. Nxc6 {[%emt 0:03:18]} dxc6 {[%emt 0:13:28]} 9. Qd4 {[%emt 0:12:09]} Be7 {[%emt 0:03:28]} 10. O-O-O {[%emt 0:08:25]} e5 {[%emt 0:17:07]} 11. Qd2 {[%emt 0:14:02]} Nf6 {[%emt 0:04:52]} 12. g5 {[%emt 0:10:13]} Ng4 {[%emt 0:00:59]} 13. Be2 {[%emt 0:10:59]} Nxe3 {[%emt 0:00:29]} 14. Qxe3 {[%emt 0:00:12]} Be6 {[%emt 0:06:55]} 15. h4 {[%emt 0:09:23]} Qa5 {[%emt 0:10:21]} 16. a3 {[%emt 0:09:50]} b5 {[%emt 0:02:31]} 17. h5 {[%emt 0:05:26]} b4 {[%emt 0:03:19]} 18. Nb1 {[%emt 0:00:47]} Ba2 {[%emt 0:07:23]} 19. Rd3 {[%emt 0:04:22]} Rb8 {[%emt 0:09:07]} 20. Qa7 {[%emt 0:02:48]} Bxg5+ {[%emt 0:01:25]} 21. Nd2 {[%emt 0:01:56]} O-O {[%emt 0:00:10]} 22. Rg1 {[%emt 0:01:06]} Bh6 {[%emt 0:00:42]} 23. Rgg3 {[%emt 0:01:13]} bxa3 {[%emt 0:00:18]} 24. Rxa3 {[%emt 0:00:12]} Qxd2# {[%emt 0:00:05]} 0-1

[Event "Polish Youth G18 Championship 2023"]
[Site "Jastrzebia Gora"]
[Date "2023.03.15"]
[Round "5.1"]
[White "Goraj, Barbara"]
[Black "Starosta, Martyna"]
[Result "1-0"]
[ECO "A09"]
[WhiteElo "2130"]
[BlackElo "2138"]
[Annotator "TA"]
[PlyCount "63"]
[EventDate "2023.03.11"]
[EventType "swiss"]
[EventCountry "POL"]
[SourceTitle "playchess.com"]
[Source "ChessBase"]
[SourceQuality "1"]
[TimeControl "40/5400+30:1800+30"]

{[%evp 11,62,9,7,0,3,0,13,10,152,147,227,212,217,198,201,189,185,193,189,195,195,186,237,170,170,152,281,163,150,148,152,123,411,404,401,397,1954,1220,2028,1216,2178,1065,1256,1254,1226,1166,1143,1108,29985,29986,29983,6337,29999]} 1. Nf3 {[%emt 0:00:05]} d5 {[%emt 0:00:05]} 2. c4 {[%emt 0:00:39]} d4 {[%emt 0:00:06]} 3. e3 {[%emt 0:08:48]} c5 {[%emt 0:01:50]} 4. b4 {[%emt 0:03:04]} dxe3 {[%emt 0:02:28]} 5. fxe3 {[%emt 0:00:59]} cxb4 {[%emt 0:00:26]} 6. d4 {[%emt 0:03:57]} e6 {[%emt 0:07:51]} 7. Bd3 {[%emt 0:04:06] A09: Réti Opening: 1 Nf3 d5 2 c4.} Nc6 {[%emt 0:02:11]} 8. O-O {[%emt 0:02:23]} Be7 {[%emt 0:02:23]} 9. Bb2 {[%emt 0:02:52][%cal Od4d5][%mdl 1024] White has compensation. The position is equal.} Bf6 {[%emt 0:02:06]} (9... Nh6 $11) 10. Nbd2 $16 {[%emt 0:03:33]} b6 {[%emt 0:12:02]} (10... Be7 $16 11. Bc2 Nf6) 11. Ne4 $18 {[%emt 0:03:29]} Bb7 {[%emt 0:01:24] [#]} 12. Qe1 $146 {[%emt 0:06:33] Qg3 is the strong threat.} ({Predecessor:} 12. Nxf6+ Nxf6 13. e4 O-O 14. d5 exd5 15. exd5 Nb8 16. Ne5 Qd6 17. Ng4 Nxg4 18. Qxg4 {½-½ Birkmann,G (1999)-Schmidt,W (1892) Regionalliga NO 0203 2002 (2.7)}) 12... Qc7 {[%emt 0:03:01]} 13. Nxf6+ {[%emt 0:06:22]} Nxf6 {[%emt 0:00:08]} 14. e4 {[%emt 0:02:09][%cal Be3e4,Be4e5][%mdl 32]} (14. d5 exd5 15. cxd5 Nxd5 $16) 14... Nd7 {[%emt 0:07:55] [#]} 15. e5 $1 {[%emt 0:08:31] Black must now prevent Ng5.} (15. d5 $6 Nce5 16. Nxe5 Nxe5 $14) 15... h6 {[%emt 0:04:31] Prevents Ng5} 16. d5 {[%emt 0:02:32][%cal Bd4d5,Bd5d6][%mdl 32]} Nd8 {[%emt 0:03:43]} (16... Nc5 $142) 17. d6 {[%emt 0:08:44]} (17. Qxb4 Qc5+ 18. Qxc5 Nxc5 $14) 17... Qc6 {[%emt 0:01:38]} 18. Qh4 {[%emt 0:03:06][%csl Gd6][%cal Rh4e7]} (18. Qxb4 $6 Qc5+ 19. Qxc5 Nxc5 $16) 18... g5 {[%emt 0:02:31] [#]} (18... O-O $16 19. Rf2 Qc5) 19. Qh5 {[%emt 0:03:11]} (19. Qh3 $142 $1) 19... Qc5+ {[%emt 0:04:05]} 20. Kh1 {[%emt 0:02:04] Nd4 would be deadly. White is more active.} Qe3 {[%emt 0:03:11] Dodges Nd4} 21. Rad1 $36 {[%emt 0:04:37][%mdl 2048] Strongly threatening Nd4. White has strong initiative.} Qf4 {[%emt 0:03:49][%mdl 8192] Loses the game.} (21... Be4 $16 22. Rfe1 Bxf3 23. gxf3 (23. Qxf3 Qxf3 24. gxf3 Rc8 $11) 23... Qf2) 22. Nd4 {[%emt 0:06:13]} Qh4 {[%emt 0:01:54]} 23. Nxe6 {[%emt 0:02:44][%mdl 64] Decoy} ({Less strong is} 23. Qxh4 gxh4 24. h3 Rg8 $11) 23... Nxe6 {[%emt 0:05:31]} (23... Bxg2+ $2 24. Kxg2 Qxh5 25. Ng7+ Kf8 26. Nxh5 $18) (23... Qxh5 24. Ng7+ Kf8 25. Nxh5 Rg8) 24. Qxf7+ {[%emt 0:00:10]} Kd8 {[%emt 0:00:06]} 25. Qxe6 {[%emt 0:02:05]} Re8 {[%emt 0:01:53] Against Qe7+} 26. Qf7 {[%emt 0:03:24]} (26. Qf5 $142) 26... Qg4 {[%emt 0:01:51]} 27. Rd2 {[%emt 0:01:34] White threatens Bf5 and mate.} Qe6 {[%emt 0:01:13]} 28. Qxe6 {[%emt 0:01:24]} Rxe6 {[%emt 0:00:05]} 29. Bf5 {[%emt 0:00:59]} Re8 {[%emt 0:02:15]} 30. Bxd7 {[%emt 0:00:49]} Kxd7 {[%emt 0:00:07]} 31. Rf7+ {[%emt 0:00:10]} Kc6 {[%emt 0:00:14]} 32. Rc7# {Ingenious play by Goraj!   Weighted Error Value: White=0.11 (very precise) /Black=0.91} 1-0

[Event "Polish Youth G18 Championship 2023"]
[Site "Jastrzebia Gora"]
[Date "2023.03.15"]
[Round "5.2"]
[White "Hertlein, Irena"]
[Black "Zabrzanska, Weronika"]
[Result "1-0"]
[ECO "C78"]
[WhiteElo "1994"]
[BlackElo "2021"]
[Annotator "TA"]
[PlyCount "91"]
[EventDate "2023.03.11"]
[EventType "swiss"]
[EventCountry "POL"]
[SourceTitle "playchess.com"]
[Source "ChessBase"]
[SourceQuality "1"]
[TimeControl "40/5400+30:1800+30"]

{[%evp 14,91,41,25,41,29,33,32,33,32,29,17,21,15,10,8,79,89,83,2,7,6,17,25,20,12,25,19,18,13,18,10,75,9,16,0,0,0,0,0,0,0,39,24,50,69,103,105,229,232,225,212,322,318,306,296,294,287,337,329,349,358,339,350,420,392,461,475,487,481,462,479,870,855,1452,1504,1236,1283,12833,12831]} 1. e4 {[%emt 0:00:02]} e5 {[%emt 0:00:10]} 2. Nf3 {[%emt 0:00:06]} Nc6 {[%emt 0:00:11]} 3. Bb5 {[%emt 0:00:08]} a6 {[%emt 0:00:21]} 4. Ba4 {[%emt 0:00:06]} Nf6 {[%emt 0:00:06]} 5. O-O {[%emt 0:00:10]} b5 {[%emt 0:00:09]} 6. Bb3 {[%emt 0:00:08]} Bc5 {[%emt 0:00:07] now scores much better than the old 6...Be7.} 7. c3 {[%emt 0:00:41]} d6 {[%emt 0:00:56]} 8. a4 {[%emt 0:00:56] Threatens to win with axb5.} (8. d4 $5 {[%cal Rd4c5]} Bb6 9. dxe5 Nxe5 10. Nxe5 dxe5 11. Qxd8+ Kxd8 12. Nd2 $14) 8... Bb7 {[%emt 0:00:36] C78: Ruy Lopez: Archangelsk and Möller Defences.} (8... Nxe4 $2 9. d4 $18) 9. d4 {[%emt 0:00:39]} Bb6 {[%emt 0:00:31]} 10. Bg5 {[%emt 0:00:43]} h6 {[%emt 0:00:18] White is slightly better.} 11. Bxf6 {[%emt 0:00:05]} Qxf6 {[%emt 0:00:23]} 12. Bd5 {[%emt 0:00:28]} O-O {[%emt 0:07:17]} 13. Na3 {[%emt 0:00:45]} Rfb8 {[%emt 0:15:58][%cal Re5d4]} 14. Nc2 {[%emt 0:00:59]} (14. dxe5 {with more complications.} Nxe5 15. Bxb7 Rxb7 16. Nxe5 Qxe5 17. Qd5) 14... Nd8 {[%emt 0:03:26]} (14... bxa4 $11 15. Rxa4 a5) 15. Bxb7 $16 {[%emt 0:01:25]} Nxb7 {[%emt 0:00:57] [#]} 16. dxe5 $146 {[%emt 0:29:06]} (16. Ne3 $16) ({Predecessor:} 16. Nb4 exd4 17. Nd5 Qe6 18. Nxd4 Qxe4 19. Nc6 Re8 20. axb5 Nc5 21. Nxb6 cxb6 22. Qxd6 axb5 23. Rxa8 Rxa8 {½-½ Boudre,J (2315)-Karpatchev,A (2533) St Chely d'Aubrac op 6th 2006 (3)}) 16... dxe5 $11 {[%emt 0:00:22]} 17. axb5 {[%emt 0:00:15]} axb5 {[%emt 0:07:09]} 18. Rxa8 {[%emt 0:01:42]} Rxa8 {[%emt 0:00:08]} 19. Qd5 {[%emt 0:00:13][%csl LRb5,LRb7,LRe5] Dodges Qe6} c6 {[%emt 0:00:28]} 20. Qxe5 {[%emt 0:01:57]} Qxe5 {[%emt 0:03:43]} 21. Nxe5 {[%emt 0:00:06]} Nc5 {[%emt 0:00:53]} 22. Nxc6 {[%emt 0:15:23]} Ra2 {[%emt 0:04:19]} (22... Nxe4 $11 {keeps the balance.} 23. Ne3 Ra2) 23. Rb1 {[%emt 0:07:30]} (23. Ne7+ $16 Kh7 24. Nd5 Rxb2 25. Nd4) 23... Nxe4 {[%emt 0:01:02]} 24. N2d4 {[%emt 0:04:01]} Nd2 {[%emt 0:02:06]} 25. Nb4 {[%emt 0:00:19] aiming for Nb3. Excellent horsemanship.} Ra4 {[%emt 0:05:43]} 26. Rd1 {[%emt 0:00:50][%cal Od4b5] Black must now prevent Nxb5!} Bxd4 {[%emt 0:00:42]} 27. cxd4 {[%emt 0:00:07][%mdl 4096] Endgame KRN-KRN} Nc4 {[%emt 0:02:45]} 28. Nd3 {[%emt 0:00:30] And now b3 would win.} Nd2 {[%emt 0:06:25][%mdl 64] Deflection, Back Rank} 29. d5 {[%emt 0:11:43][%cal Od5d6]} (29. Rxd2 $2 {gets mated.} Ra1+) 29... Nb3 {[%emt 0:01:44] [#]} 30. Ne5 $1 {[%emt 0:02:44] Hoping for d6.} Rd4 {[%emt 0:02:08] Loses the game.} (30... Kf8 $16) 31. Rxd4 $18 {[%emt 0:00:35]} Nxd4 {[%emt 0:00:07] [#] KN-KN} 32. Nc6 $1 {[%emt 0:04:00]} Nf5 {[%emt 0:00:28]} (32... Nb3 {was worth a try.} 33. Kf1 Nd2+ 34. Ke2 Nc4) 33. Kf1 {[%emt 0:00:35]} Kf8 {[%emt 0:00:24]} 34. Ke2 {[%emt 0:00:44]} Ke8 {[%emt 0:01:02]} 35. Kd3 {[%emt 0:01:08]} Kd7 {[%emt 0:00:34]} 36. Ne5+ {[%emt 0:04:42]} Ke7 {[%emt 0:02:05]} 37. Ke4 {[%emt 0:00:46]} Nd6+ {[%emt 0:00:44]} 38. Kd4 {[%emt 0:00:07]} Nb7 {[%emt 0:00:55]} 39. b4 {[%emt 0:01:43]} f6 {[%emt 0:01:20]} 40. Nc6+ {[%emt 0:00:00] White is clearly winning.} Kd7 {[%emt 0:00:00]} 41. Na7 {[%emt 0:18:34]} Nd6 {[%emt 0:00:47]} 42. f3 {[%emt 0:00:09]} Kc7 {[%emt 0:02:02]} (42... g5 $142 43. Kc5 Nf5) 43. Kc5 {[%emt 0:01:16]} Nb7+ {[%emt 0:00:54]} 44. Kxb5 {[%emt 0:00:57]} Nd6+ {[%emt 0:00:23]} 45. Ka6 {[%emt 0:05:04] Nb5+ is the strong threat.} Nb7 {[%emt 0:00:47] [#]} 46. d6+ $1 {[%emt 0:03:34] Weighted Error Value: White=0.10 (very precise) /Black=0.30} 1-0

[Event "Polish Youth G18 Championship 2023"]
[Site "Jastrzebia Gora"]
[Date "2023.03.15"]
[Round "5.3"]
[White "Bukala, Weronika"]
[Black "Kucharska, Helena"]
[Result "0-1"]
[ECO "C42"]
[WhiteElo "1899"]
[BlackElo "1779"]
[Annotator "NA RC COMBH"]
[PlyCount "63"]
[EventDate "2023.03.11"]
[EventType "swiss"]
[EventCountry "POL"]
[SourceTitle "playchess.com"]
[Source "ChessBase"]
[SourceQuality "1"]
[TimeControl "40/5400+30:1800+30"]

1. e4 {[%emt 0:01:00]} e5 {[%emt 0:00:41]} 2. Nf3 {[%emt 0:00:07]} Nf6 {[%emt 0:00:14]} 3. Nxe5 {[%emt 0:00:11]} d6 {[%emt 0:00:15]} 4. Nf3 {[%emt 0:00:05]} Nxe4 {[%emt 0:00:08]} 5. Nc3 {[%emt 0:00:06]} Nxc3 {[%emt 0:02:36]} 6. dxc3 {[%emt 0:00:35]} Be7 {[%emt 0:00:21]} 7. Be3 {[%emt 0:00:11]} Nd7 {[%emt 0:00:55]} 8. Qd2 {[%emt 0:00:11]} Nf6 {[%emt 0:02:17]} 9. Bd3 {[%emt 0:01:19]} c5 {[%emt 0:06:05]} 10. O-O-O {[%emt 0:11:27]} Qa5 {[%emt 0:04:40]} ({Black should try} 10... O-O $11) 11. a3 {[%emt 0:02:15]} O-O {[%emt 0:09:16]} 12. Rhe1 {[%emt 0:03:02]} d5 {[%emt 0:05:12]} 13. Bh6 {[%emt 0:16:47]} Ne4 {[%emt 0:17:34]} 14. Bxe4 {[%emt 0:00:24]} dxe4 {[%emt 0:00:24]} 15. Rxe4 {[%emt 0:08:08]} Be6 {[%emt 0:02:52]} 16. Bg5 {[%emt 0:02:00]} Rfd8 {[%emt 0:03:27]} 17. Qe2 {[%emt 0:01:29]} Rxd1+ {[%emt 0:03:48]} 18. Qxd1 {[%emt 0:00:26]} Bf8 {[%emt 0:00:13]} 19. Qe2 {[%emt 0:12:08]} Re8 {[%emt 0:06:50]} 20. Bf4 {[%emt 0:04:03]} h6 {[%emt 0:10:56] [#]} 21. g4 $1 {[%emt 0:01:29]} b5 {[%emt 0:01:38]} 22. g5 {[%emt 0:08:19]} b4 {[%emt 0:02:48]} 23. cxb4 {[%emt 0:01:20]} cxb4 {[%emt 0:00:44]} 24. Bd2 {[%emt 0:03:25]} Rb8 {[%emt 0:02:44]} 25. Rxe6 {[%emt 0:07:56]} bxa3 $18 {[%emt 0:04:35]} 26. Ra6 {[%emt 0:05:36]} axb2+ {[%emt 0:04:16]} 27. Kb1 {[%emt 0:00:06]} Qc7 {[%emt 0:00:26]} 28. gxh6 {[%emt 0:03:31]} Qxc2+ {[%emt 0:01:14]} 29. Kxc2 {[%emt 0:00:05]} b1=Q+ 30. Kc3 {[%emt 0:00:02]} Qb4+ {[%emt 0:01:34]} 31. Kd3 {[%emt 0:01:09]} Qb5+ {[%emt 0:00:13]} 32. Kd4 0-1

[Event "Polish Youth G18 Championship 2023"]
[Site "Jastrzebia Gora"]
[Date "2023.03.15"]
[Round "5.4"]
[White "Skolska, Emilia"]
[Black "Barwinska, Ewa"]
[Result "0-1"]
[ECO "B23"]
[WhiteElo "1586"]
[BlackElo "1963"]
[Annotator "TA"]
[PlyCount "74"]
[EventDate "2023.03.11"]
[EventType "swiss"]
[EventCountry "POL"]
[SourceTitle "playchess.com"]
[Source "ChessBase"]
[SourceQuality "1"]
[TimeControl "40/5400+30:1800+30"]

{[%evp 10,74,10,3,39,-4,4,4,8,-2,2,-26,-20,-7,-22,-37,-32,-75,-66,-85,-70,-76,-75,-90,-65,-74,-81,-87,-94,-103,-54,-83,-33,-120,-40,-102,-104,-136,-127,-201,-200,-294,-293,-284,-228,-242,-226,-387,-350,-510,-508,-584,-607,-569,-552,-644,-665,-1202,-1183,-1607,-1578,-1754,-1731,-2127,-1975,-1745,-1677]} 1. e4 {[%emt 0:00:02]} c5 {[%emt 0:00:06]} 2. Nc3 {[%emt 0:00:05]} a6 {[%emt 0:00:06]} 3. f4 {[%emt 0:00:56]} b5 {[%emt 0:00:10]} 4. d3 {[%emt 0:00:46]} e6 {[%emt 0:01:37]} 5. g3 {[%emt 0:00:55]} Bb7 {[%emt 0:01:40]} 6. Bg2 {[%emt 0:01:13]} b4 {[%emt 0:03:22] B23: Closed Sicilian: Lines without g3.} 7. Nb1 {[%emt 0:03:52]} Nf6 {[%emt 0:02:59]} 8. Nf3 {[%emt 0:02:43]} Be7 {[%emt 0:01:48] The position is equal.} 9. O-O {[%emt 0:01:13]} O-O {[%emt 0:03:11]} 10. h3 {[%emt 0:03:53]} d5 {[%emt 0:02:24]} 11. e5 {[%emt 0:01:00]} Nfd7 {[%emt 0:01:00] [#]} 12. Qe1 $146 {[%emt 0:04:00]} ({Predecessor:} 12. Nbd2 Nc6 13. Re1 a5 14. Nf1 Qc7 15. g4 a4 16. a3 bxa3 17. bxa3 Rab8 18. Qe2 {1-0 Romero Barreto,J (2240)-Sanchez,S (2348) San Antonio del Tachira op 2013 (4)}) 12... Nc6 {[%emt 0:04:16]} 13. g4 {[%emt 0:10:15]} Qc7 {[%emt 0:04:21]} 14. g5 {[%emt 0:23:40]} Nd4 {[%emt 0:13:13]} 15. Rf2 {[%emt 0:01:43]} Nf5 {[%emt 0:02:43] Black has more active pieces.} 16. h4 {[%emt 0:07:52]} Qb6 {[%emt 0:03:55]} 17. Bh3 {[%emt 0:04:01]} a5 {[%emt 0:18:07]} 18. Bxf5 {[%emt 0:05:23]} exf5 {[%emt 0:00:07]} 19. Re2 {[%emt 0:00:06]} Qe6 {[%emt 0:03:33]} (19... Rfe8 $17 20. h5 Nf8) 20. Nbd2 {[%emt 0:03:38]} Nb6 {[%emt 0:02:28]} (20... d4 $17) 21. Kh2 {[%emt 0:03:09] Black converts the advantage convincingly.} (21. d4 $1 $15) 21... Rfc8 {[%emt 0:02:43]} (21... d4 $17 22. a3 Rfd8) 22. h5 {[%emt 0:03:37]} (22. d4 $1 $15) 22... d4 $17 {[%emt 0:03:40]} 23. Qf2 {[%emt 0:04:36]} a4 $36 {[%emt 0:03:11][%cal Ba5a4,Ba4b3][%mdl 2080] White is under strong pressure.} 24. Nf1 {[%emt 0:03:16]} (24. Nh4 $17) 24... b3 $19 {[%emt 0:03:13]} 25. cxb3 {[%emt 0:02:12]} (25. Ng3 $142) 25... axb3 {[%emt 0:00:09]} 26. a3 {[%emt 0:00:05] White is weak on the light squares} Ba6 {[%emt 0:05:44]} 27. Rd2 {[%emt 0:01:10]} Nd5 {[%emt 0:01:38]} 28. Nh4 $2 {[%emt 0:01:12]} (28. Qg3) 28... c4 {[%emt 0:03:02]} 29. dxc4 {[%emt 0:01:00]} (29. Qg3 $142) 29... Rxc4 {[%emt 0:01:04] Black is clearly winning.} 30. Rd1 {[%emt 0:01:50]} Rc2 {[%emt 0:01:07]} 31. Bd2 {[%emt 0:01:07]} Bxf1 {[%emt 0:01:26]} 32. Rxf1 {[%emt 0:01:36]} Ne3 {[%emt 0:00:58] Prevents Ng2. Threatens to win with ...Ng4+.} 33. Bxe3 {[%emt 0:00:48]} dxe3 {[%emt 0:00:34][%mdl 64] [#] Pin} 34. Qxc2 {[%emt 0:00:05]} bxc2 {[%emt 0:00:05]} 35. Rac1 {[%emt 0:01:27]} Rc8 {[%emt 0:00:39] White must now prevent ...e2.} 36. Rfe1 {[%emt 0:01:16]} Qc4 {[%emt 0:00:45]} 37. Kg3 {[%emt 0:00:52] [#]} Bxg5 $1 {[%emt 0:00:43] Weighted Error Value: White=1.00/Black=0.14 (very precise)} 0-1

[Event "Polish Youth G18 Championship 2023"]
[Site "Jastrzebia Gora"]
[Date "2023.03.15"]
[Round "5.5"]
[White "Bialek, Alicja"]
[Black "Nowak, Roksana"]
[Result "0-1"]
[ECO "B90"]
[WhiteElo "1576"]
[BlackElo "1816"]
[Annotator "NA RC COMBH"]
[PlyCount "86"]
[EventDate "2023.03.11"]
[EventType "swiss"]
[EventCountry "POL"]
[SourceTitle "playchess.com"]
[Source "ChessBase"]
[SourceQuality "1"]
[TimeControl "40/5400+30:1800+30"]

1. e4 {[%emt 0:00:03]} c5 {[%emt 0:00:06]} 2. Nf3 {[%emt 0:00:05]} d6 {[%emt 0:00:04]} 3. d4 {[%emt 0:00:04]} cxd4 {[%emt 0:00:05]} 4. Nxd4 {[%emt 0:00:01]} Nf6 {[%emt 0:00:10]} 5. Nc3 {[%emt 0:00:22]} a6 {[%emt 0:00:07]} 6. Nb3 {[%emt 0:00:12]} g6 {[%emt 0:00:57]} 7. Be2 {[%emt 0:01:15]} Bg7 {[%emt 0:00:16]} 8. O-O {[%emt 0:00:53] 8.Be3 is the modern continuation.} O-O {[%emt 0:03:36]} 9. Re1 {[%emt 0:01:53]} Nbd7 {[%emt 0:05:29]} 10. Bg5 {[%emt 0:31:09]} b5 {[%emt 0:03:47] [#]} 11. a4 $146 {[%emt 0:14:50]} ({Predecessor:} 11. Bf1 Bb7 12. Nd5 h6 13. Bxf6 Nxf6 14. c3 Nxe4 15. c4 e6 16. Rxe4 exd5 17. cxd5 Bxb2 {1-0 Sliwicka,A (2308)-Sadzikowski,D (2529) Katowice POL-HUN 9th rapid 2021 (7)}) 11... b4 {[%emt 0:01:19]} 12. Nd5 {[%emt 0:00:19]} Nxd5 {[%emt 0:01:25]} 13. exd5 {[%emt 0:00:49]} Bxb2 {[%emt 0:12:54]} 14. Bf3 {[%emt 0:10:13]} Ne5 {[%emt 0:05:34]} 15. Rb1 {[%emt 0:06:50]} Bc3 {[%emt 0:03:47]} 16. Nd2 {[%emt 0:08:59]} Bd7 {[%emt 0:05:45]} 17. Re2 {[%emt 0:10:46]} Bf5 {[%emt 0:09:39]} 18. Be4 {[%emt 0:02:24]} Bd7 {[%emt 0:14:28]} 19. a5 {[%emt 0:04:16]} f6 {[%emt 0:07:19]} 20. Bh6 {[%emt 0:03:16]} Re8 {[%emt 0:00:05]} 21. Nb3 {[%emt 0:00:50]} Ba4 {[%emt 0:03:33]} 22. Bd2 {[%emt 0:00:57]} Bxb3 {[%emt 0:00:47]} 23. Bxc3 {[%emt 0:00:58]} bxc3 {[%emt 0:00:36]} 24. Rxb3 {[%emt 0:00:15]} f5 {[%emt 0:01:02]} 25. Bf3 {[%emt 0:00:27]} Qxa5 {[%emt 0:01:44]} 26. Re3 {[%emt 0:00:42]} Rec8 {[%emt 0:01:03]} 27. Be2 {[%emt 0:00:40]} Rc7 {[%emt 0:02:31]} 28. Qe1 {[%emt 0:00:30]} Rac8 {[%emt 0:00:59]} 29. h3 {[%emt 0:00:20] [#]} f4 $1 {[%emt 0:01:23]} ({Worse is} 29... Qxd5 30. Bxa6 Ra8 31. Rexc3) 30. Re4 {[%emt 0:00:09]} Qxd5 {[%emt 0:04:06]} 31. Bxa6 {[%emt 0:00:28]} Ra8 {[%emt 0:00:52]} 32. Bf1 {[%emt 0:00:09]} Ra2 {[%emt 0:04:34]} 33. Qb1 {[%emt 0:01:20]} Qxe4 {[%emt 0:01:27]} 34. Rb8+ $19 {[%emt 0:00:17]} Kg7 {[%emt 0:00:17]} 35. Qxa2 {[%emt 0:00:02]} Nf7 {[%emt 0:00:58]} 36. Qa5 {[%emt 0:01:11]} Qc6 {[%emt 0:00:57]} 37. Bb5 {[%emt 0:00:24]} Qc5 {[%emt 0:01:52]} 38. Qa8 {[%emt 0:00:37]} Ra7 {[%emt 0:00:50]} 39. Rg8+ {[%emt 0:00:32]} Kf6 {[%emt 0:00:15]} 40. Qe8 {[%emt 0:00:00]} Ra1+ {[%emt 0:00:00]} 41. Bf1 {[%emt 0:01:30]} Qc4 {[%emt 0:00:28]} 42. Rf8 {[%emt 0:00:09]} Qxf1+ {[%emt 0:00:07]} 43. Kh2 {[%emt 0:00:04]} Qg1# {[%emt 0:00:09]} 0-1

[Event "Polish Youth G18 Championship 2023"]
[Site "Jastrzebia Gora"]
[Date "2023.03.15"]
[Round "5.6"]
[White "Lukasik, Zuzanna"]
[Black "Mroz, Lena"]
[Result "1/2-1/2"]
[ECO "B44"]
[WhiteElo "1781"]
[BlackElo "1635"]
[Annotator "NA RC COMBH"]
[PlyCount "83"]
[EventDate "2023.03.11"]
[EventType "swiss"]
[EventCountry "POL"]
[SourceTitle "playchess.com"]
[Source "ChessBase"]
[SourceQuality "1"]
[TimeControl "40/5400+30:1800+30"]

1. e4 {[%emt 0:00:13]} c5 {[%emt 0:00:03]} 2. Nf3 {[%emt 0:00:27]} e6 {[%emt 0:00:06]} 3. d4 {[%emt 0:00:22]} cxd4 {[%emt 0:00:06]} 4. Nxd4 {[%emt 0:00:06]} Nc6 {[%emt 0:00:06]} 5. Nxc6 {[%emt 0:02:04]} bxc6 {[%emt 0:00:08]} 6. Bd3 {[%emt 0:03:06]} d5 {[%emt 0:02:21]} 7. O-O {[%emt 0:09:46]} Bc5 {[%emt 0:10:33]} 8. Qe2 {[%emt 0:04:16]} Ne7 {[%emt 0:07:25]} 9. c4 {[%emt 0:04:46]} d4 {[%emt 0:19:53]} 10. f4 {[%emt 0:06:26]} O-O {[%emt 0:08:15]} 11. Kh1 {[%emt 0:01:35]} f5 {[%emt 0:05:57]} 12. e5 {[%emt 0:00:56]} Ng6 {[%emt 0:06:35]} 13. Nd2 {[%emt 0:04:39]} Be7 {[%emt 0:02:36]} 14. a3 {[%emt 0:12:19]} a5 {[%emt 0:01:33]} 15. Rb1 {[%emt 0:00:50]} a4 {[%emt 0:03:59]} 16. b4 {[%emt 0:03:05]} axb3 {[%emt 0:01:16]} 17. Rxb3 {[%emt 0:00:17]} Rf7 {[%emt 0:06:39]} 18. g3 {[%emt 0:07:37]} Bf8 {[%emt 0:01:05]} 19. Nf3 {[%emt 0:01:42]} Rfa7 {[%emt 0:02:10]} 20. Bb2 {[%emt 0:05:25]} Bxa3 {[%emt 0:07:15]} 21. Bxd4 {[%emt 0:01:07]} c5 {[%emt 0:01:37]} 22. Bc3 {[%emt 0:04:44]} Ne7 {[%emt 0:02:31]} 23. Rd1 {[%emt 0:05:36]} Rd7 {[%emt 0:02:53]} 24. Rbb1 {[%emt 0:08:07]} Nc6 {[%emt 0:02:29]} 25. Kg1 {[%emt 0:03:18]} Bb4 {[%emt 0:00:49]} 26. Ra1 {[%emt 0:07:19]} Rxa1 {[%emt 0:02:08]} 27. Bxa1 {[%emt 0:00:05]} Ba6 {[%emt 0:00:11]} 28. Bc2 {[%emt 0:01:23]} Rxd1+ {[%emt 0:02:07]} 29. Bxd1 {[%emt 0:00:10]} Bxc4 {[%emt 0:00:09]} 30. Qxc4 {[%emt 0:01:00]} Qxd1+ {[%emt 0:00:01]} 31. Kg2 {[%emt 0:00:27]} Qd5 {[%emt 0:01:03]} 32. Qa6 {[%emt 0:00:34]} h6 {[%emt 0:00:12]} 33. Qe2 {[%emt 0:00:52]} Nd4 {[%emt 0:02:05]} 34. Bxd4 {[%emt 0:00:39]} cxd4 {[%emt 0:00:01]} 35. Qd3 {[%emt 0:00:55]} Bc3 {[%emt 0:00:09]} 36. Kf2 {[%emt 0:01:17]} Qe4 {[%emt 0:01:06]} 37. Qc4 {[%emt 0:00:45]} Qe3+ {[%emt 0:00:47]} 38. Kg2 {[%emt 0:00:17]} Kh7 {[%emt 0:00:25]} 39. Qxe6 {[%emt 0:00:45]} Qe2+ {[%emt 0:00:38]} 40. Kh3 {[%emt 0:00:00]} Qf1+ {[%emt 0:00:00]} 41. Kh4 {[%emt 0:01:34]} Qxf3 {[%emt 0:03:37]} 42. Qxf5+ {[%emt 0:00:08]} 1/2-1/2